fUSD/lending_fUSD_20240119
["ID","MTS","AMOUNT","RATE_DAILY","PERIOD"]
[312135695,1705666294893,-500.0,0.00023545,2]
[312135696,1705666294904,-500.0,0.00023545,2]
[312135697,1705666294915,-793.96,0.00023545,2]
[312135698,1705666294927,-495.77717242,0.00023545,2]
[312135699,1705666294938,-500.0,0.00023545,2]
[312135700,1705666294950,-500.0,0.00023545,2]
[312135701,1705666294961,-500.0,0.00023545,2]
[312135702,1705666294972,-544.35606509,0.00023545,2]
[312135703,1705666294984,-199.84288354,0.00023545,2]
[312135704,1705666294995,-509.38679731,0.00023545,2]
[312135705,1705666295006,-500.0,0.00023545,2]
[312135706,1705666295017,-500.0,0.00023545,2]
[312135707,1705666295028,-500.0,0.00023545,2]
[312135708,1705666295039,-680.83,0.00023545,2]
[312135709,1705666295051,-500.0,0.00023545,2]
[312135710,1705666295062,-500.0,0.00023545,2]
[312135711,1705666295073,-1052.77,0.00023545,2]
[312135712,1705666295084,-500.0,0.00023545,2]
[312135713,1705666295094,-500.0,0.00023545,2]
[312135714,1705666295106,-500.0,0.00023545,2]
[312135715,1705666295117,-959.44,0.00023545,2]
[312135716,1705666295129,-500.0,0.00023545,2]
[312135717,1705666295141,-500.0,0.00023545,2]
[312135718,1705666295153,-500.0,0.00023545,2]
[312135719,1705666295165,-1805.01,0.00023545,2]
[312135720,1705666295176,-500.0,0.00023545,2]
[312135721,1705666295188,-500.0,0.00023545,2]
[312135722,1705666295198,-500.0,0.00023545,2]
[312135723,1705666295210,-500.0,0.00023545,2]
[312135724,1705666295222,-2839.77,0.00023545,2]
[312135725,1705666295234,-790.25,0.00023545,2]
[312135726,1705666295245,-500.0,0.00023545,2]
[312135727,1705666295256,-520.62,0.00023545,2]
[312135728,1705666295266,-500.0,0.00023545,2]
[312135729,1705666295278,-4249.75,0.00023545,2]
[312135730,1705666295289,-3411.47,0.00023545,2]
[312135731,1705666295299,-312.96879598,0.00023545,2]
[312135732,1705666295311,-500.0,0.00023545,2]
[312135733,1705666295322,-500.0,0.00023545,2]
[312135734,1705666295333,-2837.35,0.00023545,2]
[312135735,1705666295345,-500.0,0.00023545,2]
[312135736,1705666295356,-5228.14,0.00023545,2]
[312135737,1705666295367,-931.26,0.00023545,2]
[312135738,1705666295379,-500.0,0.00023545,2]
[312135739,1705666295391,-500.0,0.00023545,2]
[312135740,1705666295404,-500.0,0.00023545,2]
[312135741,1705666295416,-1306.88,0.00023545,5]
[312135742,1705666295427,-500.0,0.00023545,2]
[312135743,1705666295438,-1111.12,0.00023545,2]
[312135744,1705666295448,-4809.82,0.00023545,2]
[312135745,1705666295460,-629.42,0.00023545,2]
[312135746,1705666295471,-500.0,0.00023545,2]
[312135747,1705666295483,-5302.03,0.00023545,2]
[312135748,1705666295494,-207.69926868,0.00023545,2]
[312135749,1705666295505,-500.0,0.00023545,2]
[312135750,1705666295517,-500.0,0.00023545,2]
[312135751,1705666295527,-500.0,0.00023545,2]
[312135752,1705666295538,-500.0,0.00023545,2]
[312135753,1705666295550,-548.62,0.00023545,2]
[312135754,1705666295562,-500.0,0.00023545,2]
[312135755,1705666295573,-500.0,0.00023545,2]
[312135756,1705666295584,-500.0,0.00023545,2]
[312135757,1705666295595,-500.0,0.00023545,2]
[312135758,1705666295605,-886.28,0.00023545,2]
[312135759,1705666295615,-340.89717749,0.00023545,2]
[312135760,1705666295625,-877.94,0.00023545,2]
[312135761,1705666295635,-500.0,0.00023545,2]
[312135762,1705666295647,-724.04,0.00023545,2]
[312135763,1705666295659,-3371.7,0.00023545,2]
[312135764,1705666295670,-596.58,0.00023545,2]
[312135765,1705666295682,-500.0,0.00023545,2]
[312135766,1705666295693,-531.26451935,0.00023545,2]
[312135767,1705666295704,-500.0,0.00023545,2]
[312135768,1705666295715,-500.0,0.00023545,2]
[312135769,1705666295726,-4400.66,0.00023545,2]
[312135770,1705666295738,-500.0,0.00023545,2]
[312135771,1705666295749,-988.81,0.00023545,2]
[312135772,1705666295761,-500.0,0.00023545,2]
[312135773,1705666295772,-827.84,0.00023545,2]
[312135774,1705666295783,-669.84,0.00023545,2]
[312135775,1705666295794,-500.0,0.00023545,2]
[312135776,1705666295806,-500.0,0.00023545,2]
[312135777,1705666295817,-300.0,0.00023545,2]
[312135778,1705666295828,-558.63,0.00023545,2]
[312135779,1705666295839,-2045.96,0.00023545,2]
[312135780,1705666295853,-3996.45,0.00023545,2]
[312135781,1705666295865,-500.0,0.00023545,2]
[312135782,1705666295876,-500.0,0.00023545,2]
[312135783,1705666295888,-500.0,0.00023545,2]
[312135784,1705666295899,-612.06,0.00023545,2]
[312135785,1705666295912,-500.0,0.00023545,2]
[312135786,1705666295924,-500.0,0.00023545,2]
[312135787,1705666295937,-2049.86,0.00023545,2]
[312135788,1705666295950,-868.63,0.00023545,2]
[312135789,1705666295962,-500.0,0.00023545,2]
[312135790,1705666295972,-591.26,0.00023545,2]
[312135791,1705666295984,-1069.62,0.00023545,2]
[312135792,1705666295994,-500.0,0.00023545,2]
[312135793,1705666296006,-500.0,0.00023545,2]
[312135794,1705666296236,-500.0,0.00023545,2]
[312135795,1705666296248,-500.0,0.00023545,2]
[312135796,1705666296259,-2549.06,0.00023545,2]
[312135797,1705666296270,-500.0,0.00023545,2]
[312135798,1705666296281,-500.0,0.00023545,2]
[312135799,1705666296292,-500.0,0.00023545,2]
[312135800,1705666296304,-587.35,0.00023545,2]
[312135801,1705666296316,-1768.63,0.00023545,2]
[312135802,1705666296327,-500.0,0.00023545,2]
[312135803,1705666296338,-500.0,0.00023545,2]
[312135804,1705666296350,-500.0,0.00023545,2]
[312135805,1705666296361,-500.0,0.00023545,2]
[312135806,1705666296374,-500.0,0.00023545,2]
[312135807,1705666296385,-1408.95,0.00023545,2]
[312135808,1705666296397,-500.0,0.00023545,2]
[312135809,1705666296409,-3266.27,0.00023545,2]
[312135810,1705666296421,-500.0,0.00023545,2]
[312135811,1705666296432,-500.0,0.00023545,2]
[312135812,1705666296442,-500.0,0.00023545,2]
[312135813,1705666296454,-500.0,0.00023545,2]
[312135814,1705666296466,-1854.3,0.00023545,2]
[312135815,1705666296477,-516.15667253,0.00023545,2]
[312135816,1705666296489,-500.0,0.00023545,2]
[312135817,1705666296501,-500.0,0.00023545,2]
[312135818,1705666296512,-638.39,0.00023545,2]
[312135819,1705666296523,-1678.82,0.00023545,2]
[312135820,1705666296535,-614.16,0.00023545,2]
[312135821,1705666296545,-500.0,0.00023545,2]
[312135822,1705666296556,-854.41,0.00023545,2]
[312135823,1705666296569,-964.22,0.00023545,2]
[312135824,1705666296581,-1518.27,0.00023545,2]
[312135825,1705666296592,-500.0,0.00023545,2]
[312135826,1705666296603,-2179.92,0.00023545,2]
[312135827,1705666296614,-500.0,0.00023545,2]
[312135828,1705666296625,-500.0,0.00023546,2]
[312135829,1705666296637,-522.03113898,0.00023546,2]
[312135830,1705666296649,-588.64,0.00023546,2]
[312135831,1705666296662,-500.0,0.00023546,2]
[312135832,1705666296674,-515.66542819,0.00023546,2]
[312135833,1705666296686,-500.0,0.00023546,2]
[312135834,1705666296697,-609.91,0.00023546,2]
[312135835,1705666296709,-500.0,0.00023546,2]
[312135836,1705666296721,-564.33084523,0.00023546,2]
[312135837,1705666296733,-503.41907174,0.00023546,2]
[312135838,1705666296744,-500.0,0.00023546,2]
[312135839,1705666296755,-500.0,0.00023546,2]
[312135840,1705666296766,-500.0,0.00023546,2]
[312135841,1705666296778,-500.0,0.00023546,2]
[312135842,1705666296789,-1000.0,0.00023546,2]
[312135843,1705666296800,-500.0,0.00023546,2]
[312135844,1705666296811,-500.0,0.00023546,2]
[312135845,1705666296822,-607.72,0.00023546,2]
[312135846,1705666296834,-500.0,0.00023546,2]
[312135847,1705666296845,-500.0,0.00023546,2]
[312135848,1705666296859,-500.0,0.00023546,2]
[312135849,1705666296873,-604.29,0.00023546,2]
[312135850,1705666296883,-767.29,0.00023546,2]
[312135851,1705666296894,-573.87,0.00023546,2]
[312135852,1705666296906,-500.0,0.00023546,2]
[312135853,1705666296917,-507.88753478,0.00023546,2]
[312135854,1705666296929,-500.0,0.00023546,2]
[312135855,1705666296941,-500.0,0.00023546,2]
[312135856,1705666296952,-828.77,0.00023546,2]
[312135857,1705666296964,-500.0,0.00023546,2]
[312135858,1705666296975,-500.0,0.00023546,2]
[312135859,1705666296986,-500.0,0.00023546,2]
[312135860,1705666296998,-500.0,0.00023546,2]
[312135861,1705666297010,-500.0,0.00023546,2]
[312135862,1705666297021,-500.0,0.00023546,2]
[312135863,1705666297033,-500.0,0.00023546,2]
[312135864,1705666297045,-500.0,0.00023546,2]
[312135865,1705666297056,-500.0,0.00023546,2]
[312135866,1705666297067,-572.89,0.00023546,2]
[312135867,1705666297078,-500.0,0.00023546,2]
[312135868,1705666297089,-500.0,0.00023546,2]
[312135869,1705666297100,-662.42,0.00023546,2]
[312135870,1705666297111,-500.0,0.00023546,2]
[312135871,1705666297122,-500.0,0.00023546,2]
[312135872,1705666297133,-500.0,0.00023546,2]
[312135873,1705666297144,-500.0,0.00023546,2]
[312135874,1705666297156,-692.21,0.00023546,2]
[312135875,1705666297167,-500.0,0.00023546,2]
[312135876,1705666297178,-500.0,0.00023546,2]
[312135877,1705666297189,-500.0,0.00023546,2]
[312135878,1705666297200,-505.94,0.00023546,2]
[312135879,1705666297211,-700.62,0.00023546,2]
[312135880,1705666297222,-843.53,0.00023546,2]
[312135881,1705666297233,-500.0,0.00023546,2]
[312135882,1705666297244,-500.0,0.00023546,2]
[312135883,1705666297255,-500.0,0.00023546,2]
[312135884,1705666297266,-500.0,0.00023546,2]
[312135885,1705666297278,-500.0,0.00023546,2]
[312135886,1705666297289,-500.0,0.00023546,2]
[312135887,1705666297300,-561.36,0.00023546,2]
[312135888,1705666297312,-500.0,0.00023546,2]
[312135889,1705666297322,-620.37,0.00023546,2]
[312135890,1705666297333,-500.0,0.00023546,2]
[312135891,1705666297344,-500.0,0.00023546,2]
[312135892,1705666297356,-500.0,0.00023546,2]
[312135893,1705666297367,-690.35,0.00023546,2]
[312135894,1705666297379,-500.00059054,0.00023546,2]
[312135895,1705666297391,-500.0,0.00023546,2]
[312135896,1705666297402,-500.0,0.00023546,2]
[312135897,1705666297413,-659.08,0.00023546,2]
[312135898,1705666297424,-500.0,0.00023546,2]
[312135899,1705666297435,-500.0,0.00023546,2]
[312135900,1705666297446,-924.43,0.00023546,2]
[312135901,1705666297457,-500.0,0.00023546,2]
[312135902,1705666297472,-500.0,0.00023546,2]
[312135903,1705666297483,-500.0,0.00023546,2]
[312135904,1705666297494,-500.0,0.00023546,2]
[312135905,1705666297505,-1191.14,0.00023546,2]
[312135906,1705666297516,-500.0,0.00023546,2]
[312135907,1705666297528,-730.5,0.00023546,2]
[312135908,1705666297539,-500.0,0.00023546,2]
[312135909,1705666297550,-557.03,0.00023546,2]
[312135910,1705666297561,-664.98,0.00023546,2]
[312135911,1705666297572,-1551.61,0.00023546,2]
[312135912,1705666297584,-500.0,0.00023546,2]
[312135913,1705666297596,-500.0,0.00023546,2]
[312135914,1705666297607,-500.0,0.00023546,2]
[312135915,1705666297618,-500.0,0.00023546,2]
[312135916,1705666297629,-1101.59,0.00023546,2]
[312135917,1705666297639,-500.0,0.00023546,2]
[312135918,1705666297650,-501.20789595,0.00023546,2]
[312135919,1705666297661,-500.0,0.00023546,2]
[312135920,1705666297672,-500.0,0.00023546,2]
[312135921,1705666297684,-629.68,0.00023546,2]
[312135922,1705666297695,-500.0,0.00023546,2]
[312135923,1705666297706,-500.0,0.00023546,2]
[312135924,1705666297722,-738.94,0.00023546,2]
[312135925,1705666297747,-500.0,0.00023546,2]
[312135926,1705666297768,-500.0,0.00023546,2]
[312135927,1705666297790,-500.0,0.00023546,2]
[312135928,1705666297813,-500.0,0.00023546,2]
[312135929,1705666297832,-810.12,0.00023546,2]
[312135930,1705666297851,-537.48,0.00023546,2]
[312135931,1705666297874,-500.0,0.00023546,2]
[312135932,1705666297895,-500.0,0.00023546,2]
[312135933,1705666297917,-526.16,0.00023546,2]
[312135934,1705666297936,-500.0,0.00023546,2]
[312135935,1705666297959,-603.09,0.00023546,2]
[312135936,1705666297983,-1028.88,0.00023546,2]
[312135937,1705666297998,-500.0,0.00023546,2]
[312135938,1705666298018,-500.0,0.00023546,2]
[312135939,1705666298039,-500.0,0.00023546,2]
[312135940,1705666298057,-500.0,0.00023546,2]
[312135941,1705666298076,-953.72,0.00023546,2]
[312135942,1705666298094,-500.0,0.00023546,2]
[312135943,1705666298114,-711.06,0.00023546,2]
[312135944,1705666298132,-424.19009748,0.00023546,2]
[312135945,1705666298150,-508.91569389,0.00023546,2]
[312135946,1705666298171,-1427.07,0.00023546,2]
[312135947,1705666298189,-618.44,0.00023546,2]
[312135948,1705666298207,-1731.93,0.00023546,2]
[312135949,1705666298224,-640.73148043,0.00023546,2]
[312135950,1705666298243,-747.42,0.00023546,2]
[312135951,1705666298262,-500.0,0.00023546,2]
[312135952,1705666298281,-500.0,0.00023546,2]
[312135953,1705666298300,-500.0,0.00023546,2]
[312135954,1705666298318,-500.0,0.00023546,2]
[312135955,1705666298337,-500.0,0.00023546,2]
[312135956,1705666298355,-500.0,0.00023546,2]
[312135957,1705666298375,-638.91,0.00023546,2]
[312135958,1705666298394,-500.0,0.00023546,2]
[312135959,1705666298414,-500.0,0.00023546,2]
[312135960,1705666298432,-458.84460412,0.00023546,2]
[312135961,1705666298451,-500.0,0.00023546,2]
[312135962,1705666298470,-587.67,0.00023546,2]
[312135963,1705666298488,-500.0,0.00023546,2]
[312135964,1705666298509,-500.0,0.00023546,2]
[312135965,1705666298530,-500.0,0.00023546,2]
[312135966,1705666298548,-500.0,0.00023546,2]
[312135967,1705666298566,-500.0,0.00023546,2]
[312135968,1705666298584,-556.3,0.00023546,2]
[312135969,1705666298603,-500.0,0.00023546,2]
[312135970,1705666298621,-500.0,0.00023546,2]
[312135971,1705666298640,-504.49581849,0.00023546,2]
[312135972,1705666298659,-1190.14,0.00023546,2]
[312135973,1705666298677,-500.0,0.00023546,2]
[312135974,1705666298698,-514.04712125,0.00023546,2]
[312135975,1705666298717,-505.02034938,0.00023546,2]
[312135976,1705666298736,-500.92237198,0.00023546,2]
[312135977,1705666298754,-500.0,0.00023546,2]
[312135978,1705666298773,-456.1986412,0.00023546,2]
[312135979,1705666298792,-500.0,0.00023546,2]
[312135980,1705666298811,-653.45,0.00023546,2]
[312135981,1705666298828,-565.86,0.00023546,2]
[312135982,1705666298848,-500.0,0.00023546,2]
[312135983,1705666298869,-500.0,0.00023546,2]
[312135984,1705666298896,-500.0,0.00023546,2]
[312135985,1705666298916,-500.0,0.00023546,2]
[312135986,1705666298934,-594.53,0.00023546,2]
[312135987,1705666298954,-500.0,0.00023546,2]
[312135988,1705666298974,-513.05580442,0.00023546,2]
[312135989,1705666298994,-500.0,0.00023546,2]
[312135990,1705666299015,-730.94,0.00023546,2]
[312135991,1705666299035,-500.0,0.00023546,2]
[312135992,1705666299054,-500.0,0.00023546,2]
[312135993,1705666299073,-541.59219287,0.00023547,2]
[312135994,1705666299092,-216.260735,0.00023547,2]
[312135995,1705666299113,-500.0,0.00023547,2]
[312135996,1705666299133,-508.58018125,0.00023547,2]
[312135997,1705666299153,-540.11650976,0.00023547,2]
[312135998,1705666299172,-507.52255646,0.00023547,2]
[312135999,1705666299191,-469.15225711,0.00023547,2]
[312136000,1705666299211,-500.0,0.00023547,2]
[312136001,1705666299229,-500.0,0.00023547,2]
[312136002,1705666299248,-500.0,0.00023547,2]
[312136003,1705666299267,-298.49794184,0.00023547,2]
[312136004,1705666299286,-509.22019086,0.00023547,2]
[312136005,1705666299304,-503.33313018,0.00023547,2]
[312136006,1705666299322,-253.5082876,0.00023547,2]
[312136007,1705666299341,-500.0,0.00023547,2]
[312136008,1705666299361,-606.44711123,0.00023547,2]
[312136009,1705666299381,-500.0,0.00023547,2]
[312136010,1705666299401,-500.0,0.00023547,2]
[312136011,1705666299419,-521.38403938,0.00023547,2]
[312136012,1705666299438,-614.04262704,0.00023547,2]
[312136013,1705666299457,-223.20212426,0.00023547,2]
[312136014,1705666299476,-554.93993197,0.00023547,2]
[312136015,1705666299494,-466.03325541,0.00023547,2]
[312136016,1705666299513,-507.72641987,0.00023547,2]
[312136017,1705666299532,-500.0,0.00023547,2]
[312136018,1705666299551,-500.0,0.00023547,2]
[312136019,1705666299570,-500.0,0.00023547,2]
[312136020,1705666299589,-201.55242765,0.00023547,2]
[312136021,1705666299607,-1439.31,0.00023547,2]
[312136022,1705666299626,-1221.48,0.00023547,2]
[312136023,1705666299646,-2355.38,0.00023547,2]
[312136024,1705666299665,-500.0,0.00023547,2]
[312136025,1705666299683,-1913.69,0.00023547,2]
[312136026,1705666299702,-500.0,0.00023547,2]
[312136027,1705666299721,-500.0,0.00023547,2]
[312136028,1705666299740,-500.0,0.00023547,2]
[312136029,1705666299758,-1389.84,0.00023547,2]
[312136030,1705666299776,-500.0,0.00023547,2]
[312136031,1705666299796,-500.0,0.00023547,2]
[312136032,1705666299815,-566.35,0.00023547,2]
[312136033,1705666299834,-500.0,0.00023547,2]
[312136034,1705666299853,-834.36,0.00023547,2]
[312136035,1705666299871,-899.48,0.00023547,2]
[312136036,1705666299893,-1018.63,0.00023547,2]
[312136037,1705666299912,-770.66,0.00023547,2]
[312136038,1705666299931,-602.31,0.00023547,2]
[312136039,1705666299949,-543.43,0.00023547,2]
[312136040,1705666299971,-1486.66,0.00023547,2]
[312136041,1705666299991,-1291.26,0.00023547,2]
[312136042,1705666300009,-946.18,0.00023547,2]
[312136043,1705666300029,-1374.09,0.00023547,2]
[312136044,1705666300048,-1903.0,0.00023547,2]
[312136045,1705666300068,-1394.03,0.00023547,2]
[312136046,1705666300087,-500.0,0.00023547,2]
[312136047,1705666300106,-1081.06,0.00023547,2]
[312136048,1705666300124,-613.64,0.00023547,2]
[312136049,1705666300143,-822.5,0.00023547,2]
[312136050,1705666300161,-988.14,0.00023547,2]
[312136051,1705666300457,-1134.32,0.00023547,2]
[312136052,1705666300485,-1114.34,0.00023547,2]
[312136053,1705666300497,-500.0,0.00023547,2]
[312136054,1705666300509,-500.0,0.00023547,2]
[312136055,1705666300520,-500.0,0.00023547,2]
[312136056,1705666300531,-1136.5,0.00023547,2]
[312136057,1705666300543,-657.2,0.00023547,2]
[312136058,1705666300554,-1517.72,0.00023547,2]
[312136059,1705666300567,-500.0,0.00023547,2]
[312136060,1705666300579,-1390.83,0.00023547,2]
[312136061,1705666300590,-500.0,0.00023547,2]
[312136062,1705666300602,-500.0,0.00023547,2]
[312136063,1705666300613,-624.44,0.00023547,2]
[312136064,1705666300624,-873.54,0.00023547,2]
[312136065,1705666300636,-500.0,0.00023547,2]
[312136066,1705666300647,-500.0,0.00023547,2]
[312136067,1705666300658,-1098.08,0.00023547,2]
[312136068,1705666300669,-1055.03,0.00023547,2]
[312136069,1705666300679,-1465.17,0.00023547,2]
[312136070,1705666300690,-1388.77,0.00023547,2]
[312136071,1705666300701,-751.33,0.00023547,2]
[312136072,1705666300712,-429.04800523,0.00023547,2]
[312136073,1705666300724,-847.66,0.00023547,2]
[312136074,1705666300737,-1716.75,0.00023547,2]
[312136075,1705666300748,-1266.25,0.00023547,2]
[312136076,1705666300760,-1506.4,0.00023547,2]
[312136077,1705666300771,-1094.94,0.00023547,2]
[312136078,1705666300783,-1831.72,0.00023547,2]
[312136079,1705666300794,-1727.3,0.00023547,2]
[312136080,1705666300805,-1056.89,0.00023547,2]
[312136081,1705666300817,-500.0,0.00023547,2]
[312136082,1705666300828,-935.85,0.00023547,2]
[312136083,1705666300840,-1066.08,0.00023547,2]
[312136084,1705666300851,-1553.56,0.00023547,2]
[312136085,1705666300862,-2466.3,0.00023547,2]
[312136086,1705666300878,-1630.52,0.00023547,2]
[312136087,1705666300889,-1692.09,0.00023547,2]
[312136088,1705666300900,-1389.04,0.00023547,2]
[312136089,1705666300911,-1366.17,0.00023547,2]
[312136090,1705666300922,-162.06,0.00023568,2]
[312136091,1705666300934,-436.5,0.0002357,2]
[312136092,1705666300946,-432.05,0.00023642,2]
[312136093,1705666300958,-3650.0,0.000237,2]
[312136094,1705666300970,-38052.0,0.000237,2]
[312136095,1705666300981,-342.67,0.00023749,2]
[312136096,1705666300992,-157.57,0.00023759,2]
[312136097,1705666301003,-12068.94,0.00023801,2]
[312136098,1705666301014,-1901.08,0.00023801,2]
[312136099,1705666301025,-975.74,0.00023801,2]
[312136100,1705666301037,-2659.65,0.00023801,2]
[312136101,1705666301048,-500.0,0.00023801,2]
[312136102,1705666301060,-564.95,0.00023801,2]
[312136103,1705666301070,-500.0,0.00023801,2]
[312136104,1705666301084,-1625.11,0.00023801,2]
[312136105,1705666301095,-1446.64,0.00023801,2]
[312136106,1705666301106,-2115.14,0.00023801,2]
[312136107,1705666301118,-1533.66,0.00023801,2]
[312136108,1705666301130,-5142.49,0.00023801,2]
[312136109,1705666301142,-18985.1,0.00023801,2]
[312136110,1705666301153,-689.2,0.00023801,2]
[312136111,1705666301164,-2678.36,0.00023801,2]
[312136112,1705666301175,-1927.81,0.00023801,2]
[312136113,1705666301186,-3236.89,0.00023801,2]
[312136114,1705666301198,-2323.62,0.00023801,2]
[312136115,1705666301209,-3099.95,0.00023801,2]
[312136116,1705666301220,-1604.1,0.00023801,2]
[312136117,1705666301232,-3224.28,0.00023801,2]
[312136118,1705666301243,-626.86,0.00023801,2]
[312136119,1705666301254,-783.31,0.00023801,2]
[312136120,1705666301265,-3676.75,0.00023801,2]
[312136121,1705666301277,-1875.81,0.00023801,2]
[312136122,1705666301288,-838.41,0.00023801,2]
[312136123,1705666301300,-819.65,0.00023801,2]
[312136124,1705666301311,-993.83,0.00023801,2]
[312136125,1705666301323,-1210.28,0.00023801,2]
[312136126,1705666301335,-500.0,0.00023801,2]
[312136127,1705666301346,-432.05,0.00023815,2]
[312136128,1705666301358,-237.294827,0.00023816,7]
[312136129,1705666301369,-296.110015,0.00023816,7]
[312136130,1705666301380,-3394.92,0.00023816,2]
[312136131,1705666301390,-2245.7,0.00023816,2]
[312136132,1705666301401,-2640.33,0.00023816,5]
[312136133,1705666301412,-1564.92,0.00023816,2]
[312136134,1705666301424,-1643.94,0.00023816,2]
[312136135,1705666301437,-15598.58,0.00023816,2]
[312136136,1705666301448,-19754.48,0.00023816,2]
[312136137,1705666301459,-11426.74,0.00023816,2]
[312136138,1705666301470,-1205.31,0.00023816,2]
[312136139,1705666301481,-500.0,0.00023816,2]
[312136140,1705666301493,-5092.13,0.00023816,2]
[312136141,1705666301505,-2505.92,0.00023816,2]
[312136142,1705666301516,-2542.57,0.00023816,2]
[312136143,1705666301527,-1214.32,0.00023816,2]
[312136144,1705666301540,-2516.11,0.00023816,2]
[312136145,1705666301551,-5945.8,0.00023816,2]
[312136146,1705666301563,-47078.31,0.00023816,2]
[312136147,1705666301574,-753.07,0.00023816,2]
[312136148,1705666301586,-3287.55,0.00023816,2]
[312136149,1705666301600,-2887.71,0.00023816,2]
[312136150,1705666301611,-1180.41,0.00023816,2]
[312136151,1705666301622,-1115.89,0.00023816,2]
[312136152,1705666301634,-4394.09,0.00023816,2]
[312136153,1705666301645,-500.0,0.00023816,2]
[312136154,1705666301657,-1102.23,0.00023816,2]
[312136155,1705666301668,-1589.65,0.00023816,2]
[312136156,1705666301680,-34180.49,0.00023816,2]
[312136157,1705666301692,-2952.43,0.00023816,2]
[312136158,1705666301703,-892.05,0.00023816,2]
[312136159,1705666301713,-2360.62,0.00023816,2]
[312136160,1705666301725,-150.0,0.00023816,2]
[312136161,1705666301735,-150.0,0.00023816,2]
[312136162,1705666301748,-2662.92,0.00023816,2]
[312136163,1705666301760,-4108.99,0.00023816,2]
[312136164,1705666301772,-500.0,0.00023817,2]
[312136165,1705666301782,-500.0,0.00023817,2]
[312136166,1705666301794,-500.0,0.00023817,2]
[312136167,1705666301805,-500.0,0.00023817,2]
[312136168,1705666301815,-500.0,0.00023817,2]
[312136169,1705666301826,-500.0,0.00023817,2]
[312136170,1705666301838,-500.0,0.00023817,2]
[312136171,1705666301849,-500.0,0.00023817,2]
[312136172,1705666301860,-500.0,0.00023817,2]
[312136173,1705666301877,-500.0,0.00023817,2]
[312136174,1705666301888,-500.0,0.00023817,2]
[312136175,1705666301900,-500.0,0.00023817,2]
[312136176,1705666301911,-500.0,0.00023817,2]
[312136177,1705666301924,-500.0,0.00023817,2]
[312136178,1705666301936,-598.8,0.00023817,2]
[312136179,1705666301947,-529.14750042,0.00023817,2]
[312136180,1705666301960,-543.5,0.00023817,2]
[312136181,1705666301972,-500.0,0.00023817,2]
[312136182,1705666301984,-500.0,0.00023817,2]
[312136183,1705666301995,-500.0,0.00023817,2]
[312136184,1705666302006,-500.0,0.00023817,2]
[312136185,1705666302018,-628.05,0.00023817,2]
[312136186,1705666302030,-500.0,0.00023817,2]
[312136187,1705666302042,-960.21,0.00023817,2]
[312136188,1705666302053,-1176.38,0.00023817,2]
[312136189,1705666302065,-500.0,0.00023817,2]
[312136190,1705666302076,-500.0,0.00023817,2]
[312136191,1705666302088,-577.3,0.00023817,2]
[312136192,1705666302100,-500.0,0.00023817,2]
[312136193,1705666302112,-500.0,0.00023817,2]
[312136194,1705666302123,-589.13,0.00023817,2]